bitfinex/quotes_SOLUSD_20250626
["timestamp","ask_amount","ask_price","bid_price","bid_amount"]
[1750961694780,7.8166,142.4,142.35,28.94]
[1750961694985,6.80185015,142.36,142.34,28.96]
[1750961695214,6.80185015,142.35,142.34,0.02]
[1750961697503,7.02343582,142.39,142.34,0.02]
[1750961697695,6.80185015,142.35,142.34,0.02]
[1750961701116,6.80185015,142.38,142.34,0.02]
[1750961701308,6.80185015,142.36,142.34,0.02]
[1750961701487,6.80185015,142.35,142.34,18.66964886]
[1750961702608,6.80185015,142.36,142.34,18.66964886]
[1750961703417,14.61845015,142.4,142.34,18.66964886]
[1750961703717,6.80185015,142.35,142.34,18.66964886]
[1750961703928,6.80185015,142.35,142.34,0.02]
[1750961711533,7.8166,142.4,142.34,88.98]
[1750961711713,6.80185015,142.36,142.34,88.98]
[1750961712525,6.80185015,142.37,142.35,18.64964886]
[1750961712723,6.80185015,142.37,142.35,107.60964886]
[1750961712921,6.76478416,142.43,142.35,107.60964886]
[1750961713120,1.5643,142.43,142.37,18.64964886]
[1750961713324,6.80185015,142.39,142.37,18.64964886]
[1750961713527,6.80185015,142.39,142.37,107.60964886]
[1750961715130,6.80185015,142.38,142.37,107.60964886]
[1750961715631,6.80185015,142.38,142.37,88.96]
[1750961717345,6.80185015,142.38,142.34,95.28]
[1750961717510,6.80185015,142.35,142.34,113.92964886]
[1750961718247,6.80185015,142.36,142.34,113.92964886]
[1750961719334,6.80185015,142.38,142.35,18.64964886]
[1750961719503,6.80185015,142.37,142.36,47.56964886]
[1750961719936,6.80185015,142.37,142.36,28.92]
[1750961720320,6.80185015,142.37,142.35,88.96]
[1750961720630,6.80185015,142.36,142.35,107.60964886]
[1750961720832,6.80185015,142.36,142.35,88.96]
[1750961721027,6.80185015,142.36,142.34,6.32]
[1750961721243,6.80185015,142.35,142.34,6.32]
[1750961727723,13.37785101,142.39,142.34,6.32]
[1750961727724,12.22689087,142.38,142.34,6.32]
[1750961727928,6.80185015,142.35,142.34,6.32]
[1750961728612,5.20335796,142.38,142.34,24.96964886]
[1750961728815,5.20335796,142.37,142.35,47.56964886]
[1750961729030,6.80185015,142.37,142.35,47.56964886]
[1750961729231,6.80185015,142.36,142.35,47.56964886]
[1750961729445,6.80185015,142.36,142.35,136.52964886]
[1750961729742,5.20335796,142.39,142.35,136.52964886]
[1750961730049,6.80185015,142.36,142.35,136.52964886]
[1750961731245,5.20335796,142.39,142.35,136.52964886]
[1750961731448,6.80185015,142.38,142.35,136.52964886]
[1750961733832,5.20335796,142.41,142.35,136.52964886]
[1750961734032,6.80185015,142.39,142.35,136.52964886]
[1750961734236,6.80185015,142.38,142.35,136.52964886]
[1750961735557,6.80185015,142.39,142.35,136.52964886]
[1750961736556,5.20335796,142.42,142.36,0.14216157]
[1750961736855,6.80185015,142.44,142.39,18.64964886]
[1750961737026,6.80185015,142.43,142.41,18.64964886]
[1750961737449,6.80185015,142.44,142.42,28.92]
[1750961737640,11.94260139,142.46,142.43,18.64964886]
[1750961737849,18.74445154,142.46,142.44,28.92]
[1750961738535,6.80185015,142.45,142.44,47.56964886]
[1750961739432,6.80185015,142.45,142.44,18.64964886]
[1750961739848,13.82191842,142.45,142.41,88.96]
[1750961740027,6.80185015,142.42,142.41,88.96]
[1750961740956,6.80185015,142.42,142.4,6.3]
[1750961741161,6.80185015,142.41,142.4,6.3]
[1750961743927,6.80185015,142.41,142.37,117.88]
[1750961744127,6.80185015,142.38,142.37,28.92]
[1750961744327,6.80185015,142.38,142.37,118.32]
[1750961745452,6.80185015,142.38,142.37,89.4]
[1750961746258,6.80185015,142.38,142.35,95.7]
[1750961746552,6.80185015,142.36,142.35,95.7]
[1750961749335,6.80185015,142.36,142.35,114.34964886]
[1750961749542,6.80185015,142.37,142.35,114.34964886]
[1750961749747,6.80185015,142.37,142.36,47.56964886]
[1750961750273,6.80185015,142.38,142.36,47.56964886]
[1750961750453,6.80185015,142.38,142.36,136.96964886]
[1750961751559,6.80185015,142.39,142.37,18.64964886]
[1750961751759,6.80185015,142.39,142.38,47.56964886]
[1750961755171,6.80185015,142.39,142.38,28.92]
[1750961755573,6.80185015,142.39,142.36,108.04964886]
[1750961755877,6.80185015,142.37,142.36,108.04964886]
[1750961756880,6.80185015,142.37,142.35,35.22]
[1750961757086,6.80185015,142.4,142.35,6.3]
[1750961757087,6.80185015,142.36,142.35,6.3]
[1750961757384,6.80185015,142.36,142.34,0.02]
[1750961757548,6.80185015,142.35,142.34,0.02]
[1750961763781,13.82678868,142.35,142.34,0.02]
[1750961765266,6.80185015,142.35,142.34,0.02]
[1750961765887,13.82678868,142.35,142.34,0.02]
[1750961768882,6.80185015,142.35,142.34,0.02]
[1750961769055,13.82678868,142.35,142.34,0.02]
[1750961770175,6.80185015,142.35,142.34,0.02]
[1750961773086,13.82678868,142.35,142.34,0.02]
[1750961773285,6.80185015,142.35,142.34,0.02]
[1750961773661,1.6601,142.34,142.32,0.02]
[1750961773858,7.02641933,142.32,142.29,0.02]
[1750961774084,6.80185015,142.3,142.29,0.02]
[1750961777876,13.82925703,142.3,142.29,0.02]
[1750961778599,13.82925703,142.3,142.28,0.02]
[1750961778772,6.80185015,142.29,142.28,0.02]
[1750961780080,13.82975091,142.29,142.28,0.02]
[1750961781899,13.82975091,142.29,142.23,95.7]
[1750961782093,13.82975091,142.29,142.21,89.4]
[1750961782094,6.80185015,142.24,142.21,89.4]
[1750961782297,6.80185015,142.22,142.2,91.0396]
[1750961783503,1.6577,142.28,142.2,91.0396]
[1750961783799,6.80185015,142.22,142.2,91.0396]
[1750961784472,6.80185015,142.21,142.2,109.68924886]
[1750961784890,6.80185015,142.21,142.2,89.4]
[1750961785900,17.57238585,142.27,142.2,89.4]
[1750961785901,7.02888873,142.27,142.2,89.4]
[1750961786073,6.80185015,142.23,142.2,89.4]
[1750961788002,6.80185015,142.22,142.2,89.4]
[1750961790284,6.80185015,142.23,142.2,89.4]
[1750961790692,6.80185015,142.25,142.21,47.58964886]
[1750961791001,6.80185015,142.24,142.21,47.58964886]
[1750961793017,6.80185015,142.23,142.21,47.58964886]
[1750961793514,7.02892957,142.27,142.2,90.9132]
[1750961793515,6.80185015,142.22,142.2,89.4]
[1750961793820,6.80185015,142.21,142.2,89.4]
[1750961796701,6.80185015,142.21,142.18,124.66]
[1750961796907,6.80185015,142.2,142.18,124.66]
[1750961797288,6.80185015,142.2,142.18,95.72]
[1750961797489,6.80185015,142.2,142.18,124.66]
[1750961797895,6.80185015,142.19,142.18,95.72]
[1750961798107,6.80185015,142.19,142.18,6.32]
[1750961801002,1.6617,142.25,142.18,6.32]
[1750961801184,6.80185015,142.21,142.18,95.72]
[1750961801886,6.80185015,142.2,142.18,95.72]
[1750961804611,6.80185015,142.21,142.18,95.72]
[1750961805407,1.6617,142.25,142.18,95.72]
[1750961805613,6.80185015,142.21,142.18,95.72]
[1750961806696,6.80185015,142.2,142.18,95.72]
[1750961807206,6.80185015,142.21,142.18,95.72]
[1750961807800,6.80185015,142.19,142.18,95.72]
[1750961810605,6.80185015,142.19,142.18,6.32]
[1750961811912,7.03037198,142.24,142.18,6.32]
[1750961812115,6.80185015,142.22,142.18,95.72]
[1750961812488,6.80185015,142.22,142.19,28.94]
[1750961812999,6.80185015,142.21,142.19,28.94]
[1750961813207,6.80185015,142.21,142.18,124.66]
[1750961813512,6.80185015,142.2,142.18,124.66]
[1750961814014,6.80185015,142.24,142.18,95.72]
[1750961814212,6.80185015,142.19,142.18,6.32]
[1750961815315,13.8326588,142.24,142.18,6.32]
[1750961815316,6.80185015,142.2,142.18,6.32]
[1750961815715,6.80185015,142.21,142.18,6.32]
[1750961816621,7.03080865,142.24,142.18,6.32]
[1750961816821,6.80185015,142.21,142.18,6.32]
[1750961817219,6.80185015,142.22,142.18,6.32]
[1750961817520,6.80185015,142.22,142.19,28.94]
[1750961820121,6.80185015,142.2,142.19,89.4]
[1750961820726,6.80185015,142.2,142.18,0.02]
[1750961821030,6.80185015,142.19,142.18,0.02]
[1750961821622,13.83469352,142.19,142.18,0.02]
[1750961824125,6.80185015,142.19,142.18,0.02]
[1750961824707,12.00912122,142.19,142.18,0.02]
[1750961827610,6.80185015,142.19,142.18,0.02]
[1750961827927,12.00912122,142.19,142.18,0.02]
[1750961830538,6.80185015,142.19,142.18,0.02]
[1750961830834,12.00912122,142.19,142.18,0.02]
[1750961831022,6.80185015,142.19,142.18,0.02]
[1750961831201,12.00912122,142.19,142.18,0.02]
[1750961831847,6.80185015,142.19,142.18,0.02]
[1750961832121,12.00912122,142.19,142.18,0.02]
[1750961832329,6.80185015,142.19,142.18,0.02]
[1750961840041,12.00912122,142.19,142.18,0.02]
[1750961840250,6.80185015,142.19,142.18,0.02]
[1750961840536,12.00912122,142.19,142.18,0.02]
[1750961840730,19.04196459,142.19,142.18,0.02]
[1750961840934,12.00912122,142.19,142.18,0.02]
[1750961841454,19.04196459,142.19,142.18,0.02]
[1750961844322,25.60717104,142.19,142.18,0.02]
[1750961845740,25.60717104,142.19,142.13,0.02]
[1750961845933,6.80185015,142.14,142.13,0.02]
[1750961850630,12.00912122,142.18,142.13,114.87149901]
[1750961850946,6.80185015,142.18,142.14,6.80185015]
[1750961851339,6.80185015,142.18,142.13,25.47149901]
[1750961852536,6.80185015,142.17,142.13,25.47149901]
[1750961854554,6.80185015,142.16,142.13,18.66964886]
[1750961855463,6.80185015,142.15,142.13,0.02]
[1750961855837,6.80185015,142.14,142.13,0.02]
[1750961856558,13.83716744,142.14,142.13,0.02]
[1750961857765,19.04443851,142.14,142.12,0.02]
[1750961857939,12.00912122,142.13,142.12,0.02]
[1750961858336,6.80185015,142.13,142.12,0.02]
[1750961858637,5.20727107,142.14,142.12,0.02]
[1750961858836,6.80185015,142.13,142.12,0.02]
[1750961860639,13.83766243,142.13,142.12,0.02]
[1750961861146,6.80185015,142.13,142.12,0.02]
[1750961861448,13.83766243,142.13,142.12,0.02]
[1750961862266,19.0449335,142.13,142.09,0.02]
[1750961862472,6.80185015,142.1,142.09,0.02]
[1750961862645,13.83914782,142.1,142.09,0.02]
[1750961866964,20.64099797,142.1,142.08,0.02]
[1750961867154,13.6037003,142.09,142.08,0.02]
[1750961867843,20.64149324,142.09,142.08,0.02]
[1750961870072,13.83964309,142.09,142.08,0.02]
[1750961872873,20.64149324,142.09,142.08,0.02]
[1750961876381,13.83964309,142.09,142.08,0.02]
[1750961879774,20.64149324,142.09,142.08,0.02]
[1750961879954,38.23597561,142.09,142.03,0.02]
[1750961880151,6.80185015,142.04,142.03,0.02]
[1750961880589,6.80185015,142.05,142.03,0.02]
[1750961880923,6.80185015,142.09,142.04,12.95565015]
[1750961881063,6.80185015,142.1,142.06,6.80185015]
[1750961881264,6.80185015,142.11,142.07,1.5026]
[1750961881761,8.99005014,142.12,142.07,1.5026]
[1750961881962,8.99005014,142.12,142.07,8.30445015]
[1750961882364,2.18819999,142.12,142.09,6.80185015]
[1750961882774,2.18819999,142.12,142.1,12.89245015]
[1750961883088,0.04,142.16,142.11,25.45149901]
[1750961883263,0.04,142.16,142.11,18.64964886]
[1750961883264,6.80185015,142.15,142.11,18.64964886]
[1750961883786,7.07443828,142.16,142.11,18.64964886]
[1750961883787,0.04,142.16,142.11,18.64964886]
[1750961883958,6.80185015,142.15,142.11,25.45149901]
[1750961884371,6.84185015,142.16,142.12,18.64964886]
[1750961884580,0.04,142.16,142.13,6.80185015]
[1750961884784,0.04,142.16,142.14,1.6505]
[1750961887184,6.84185015,142.16,142.14,1.6505]
[1750961895911,6.80185015,142.15,142.11,6.28]
[1750961896094,6.80185015,142.13,142.11,6.28]
[1750961897399,6.80185015,142.12,142.11,6.28]
[1750961897579,6.80185015,142.12,142.09,89.4]
[1750961897773,6.80185015,142.1,142.09,89.4]
[1750961898197,6.80185015,142.1,142.07,109.65774886]
[1750961899294,6.80185015,142.09,142.07,91.0081]
[1750961900698,7.0359978,142.13,142.07,91.0081]
[1750961900889,6.80185015,142.1,142.07,91.0081]
[1750961901292,5.22425488,142.15,142.08,18.64964886]
[1750961901598,6.80185015,142.11,142.08,108.04964886]
[1750961905191,6.80185015,142.11,142.08,136.98964886]
[1750961905393,7.03502583,142.15,142.08,136.98964886]
[1750961905600,6.80185015,142.12,142.08,136.98964886]
[1750961906210,6.80185015,142.13,142.08,54.39149901]
[1750961906408,12.29879944,142.16,142.1,18.64964886]
[1750961906409,6.80185015,142.14,142.1,18.64964886]
[1750961906714,6.80185015,142.14,142.1,54.39149901]
[1750961907207,6.80185015,142.14,142.1,47.58964886]
[1750961907409,6.80185015,142.15,142.1,54.39149901]
[1750961911304,6.80185015,142.13,142.1,47.58964886]
[1750961911493,6.80185015,142.12,142.1,28.94]
[1750961911690,6.80185015,142.13,142.1,28.94]
[1750961912703,7.07456493,142.16,142.1,28.94]
[1750961912912,6.80185015,142.15,142.11,18.64964886]
[1750961913795,6.80185015,142.14,142.11,18.64964886]
[1750961917224,6.80185015,142.14,142.11,108.04964886]
[1750961917719,0.04,142.16,142.12,28.92]
[1750961917905,6.84185015,142.16,142.13,18.64964886]
[1750961918104,0.04,142.16,142.13,18.64964886]
[1750961918822,0.04,142.16,142.14,28.92]
[1750961919392,0.04,142.16,142.15,25.45149901]
[1750961919618,0.04,142.16,142.15,25.59366058]
[1750961921515,0.04,142.16,142.15,32.91280609]
[1750961921725,0.04,142.16,142.15,25.87798372]
[1750961922796,0.04,142.16,142.15,26.58146595]
[1750961924006,0.04,142.16,142.15,33.61628832]
[1750961924209,0.04,142.16,142.15,123.01628832]
[1750961925952,0.04,142.16,142.15,115.98146595]
[1750961927908,0.04,142.16,142.15,108.89529266]
[1750961928113,0.04,142.16,142.15,108.19181043]
[1750961929125,0.04,142.16,142.15,108.04964886]
[1750961930401,6.84185015,142.16,142.13,89.4]
[1750961930631,6.80185015,142.15,142.13,118.32]
[1750961931008,6.80185015,142.14,142.13,136.96964886]
[1750961931206,0.04,142.16,142.14,18.64964886]
[1750961931727,0.04,142.16,142.15,28.92]
[1750961934232,6.84185015,142.16,142.15,28.92]
[1750961934533,15.1958003,142.16,142.08,89.4]
[1750961934727,6.80185015,142.09,142.06,95.68]
[1750961934913,6.80185015,142.09,142.07,28.92]
[1750961935224,6.80185015,142.09,142.08,18.64964886]
[1750961935436,6.80185015,142.09,142.07,28.92]
[1750961935612,6.80185015,142.1,142.08,18.64964886]
[1750961936419,6.80185015,142.09,142.06,6.28]
[1750961936620,6.80185015,142.07,142.06,6.28]
[1750961938838,6.80185015,142.07,142.03,18.66964886]
[1750961939016,6.80185015,142.05,142.03,47.58964886]
[1750961939736,6.80185015,142.08,142.04,0.14216157]
[1750961939932,6.80185015,142.08,142.05,28.92]
[1750961940338,6.80185015,142.07,142.05,28.92]
[1750961940713,7.03630734,142.12,142.05,28.92]
[1750961940950,6.80185015,142.07,142.05,28.92]
[1750961942844,6.80185015,142.09,142.05,28.92]
[1750961943019,6.80185015,142.08,142.05,28.92]
[1750961943549,6.80185015,142.09,142.05,28.92]
[1750961944417,1.6636,142.13,142.06,18.79181043]
[1750961944618,6.80185015,142.11,142.07,35.72185015]
[1750961944837,6.80185015,142.12,142.07,35.72185015]
[1750961945141,6.80185015,142.13,142.08,25.45149901]
[1750961945645,6.80185015,142.13,142.09,35.72185015]
[1750961945830,6.80185015,142.13,142.09,118.32]
[1750961946140,6.80185015,142.12,142.09,118.32]
[1750961947623,6.80185015,142.1,142.09,89.4]
[1750961947831,6.80185015,142.1,142.07,6.28]
[1750961948125,6.80185015,142.09,142.07,6.28]
[1750961950029,6.80185015,142.08,142.07,6.28]
[1750961954247,6.80185015,142.08,142.06,28.92]
[1750961956856,6.80185015,142.09,142.06,28.92]
[1750961959654,6.80185015,142.1,142.06,28.92]
[1750961959837,6.80185015,142.1,142.06,35.72185015]
[1750961960568,6.80185015,142.14,142.09,25.45149901]
[1750961960756,6.80185015,142.14,142.1,28.92]
[1750961962558,6.80185015,142.15,142.1,35.72185015]
[1750961962954,6.80185015,142.14,142.1,35.72185015]
[1750961964353,6.80185015,142.15,142.1,35.72185015]
[1750961964560,6.80185015,142.15,142.11,25.45149901]
[1750961964853,6.80185015,142.15,142.12,28.92]
[1750961966137,6.84185015,142.16,142.12,28.92]
[1750961966654,0.04,142.16,142.13,18.64964886]
[1750961966851,0.04,142.16,142.14,28.92]
[1750961969767,6.84185015,142.16,142.14,28.92]
[1750961970933,0.04,142.16,142.14,28.92]
[1750961972165,6.84185015,142.16,142.14,28.92]
[1750961973640,0.04,142.16,142.14,28.92]
[1750961973841,6.84185015,142.16,142.14,28.92]
[1750961975170,0.04,142.16,142.14,28.92]
[1750961979976,0.04,142.16,142.15,18.64964886]
[1750961980286,0.04,142.16,142.15,25.59366058]
[1750961980652,0.04,142.16,142.15,18.79181043]
[1750961980877,6.84185015,142.16,142.14,89.4]
[1750961981180,6.84185015,142.16,142.15,28.9]
[1750961983887,6.84185015,142.16,142.13,28.9]
[1750961984182,6.80185015,142.15,142.13,28.9]
[1750961990267,0.04,142.16,142.13,28.9]
[1750961990590,6.80185015,142.14,142.12,95.66]
[1750961990789,6.80185015,142.13,142.08,89.4]
[1750961991080,6.80185015,142.09,142.07,6.26]
[1750961991286,12.97485015,142.16,142.07,143.20964886]
[1750961991287,6.80185015,142.08,142.07,143.20964886]
[1750961992876,6.80185015,142.09,142.07,143.20964886]
[1750961993764,6.80185015,142.08,142.07,6.26]
[1750961994473,6.80185015,142.08,142.03,18.66964886]
[1750961994673,6.80185015,142.05,142.04,28.9]
[1750961995766,6.80185015,142.05,142.03,18.66964886]
[1750961995959,6.80185015,142.05,142.03,47.56964886]
[1750961996362,6.80185015,142.05,142.03,18.66964886]
[1750961996693,6.80185015,142.05,142.03,47.56964886]
[1750961997586,6.80185015,142.05,142.04,28.9]
[1750962000169,24.37859688,142.12,142.04,28.9]
[1750962000469,6.80185015,142.05,142.03,136.96964886]
[1750962001293,6.80185015,142.07,142.03,143.77149901]
[1750962001512,5.23790741,142.11,142.05,6.80185015]
[1750962001675,1.5491,142.12,142.07,25.45149901]
[1750962001876,6.80185015,142.12,142.08,28.9]
[1750962002080,6.80185015,142.11,142.08,28.9]
[1750962003079,7.03539679,142.14,142.08,28.9]
[1750962003277,6.80185015,142.11,142.08,28.9]
[1750962004178,6.80185015,142.1,142.08,28.9]
[1750962004676,6.80185015,142.09,142.08,28.9]
[1750962005684,6.80185015,142.1,142.08,28.9]
[1750962006500,6.80185015,142.09,142.08,28.9]
[1750962010491,6.80185015,142.09,142.07,89.4]
[1750962010687,6.80185015,142.08,142.07,89.4]
[1750962014088,13.84013843,142.08,142.07,89.4]
[1750962014709,13.84013843,142.08,142.03,35.18]
[1750962014996,6.80185015,142.05,142.03,6.28]
[1750962015197,6.80185015,142.05,142.03,35.18]
[1750962016686,6.80185015,142.04,142.03,35.18]
[1750962017102,6.80185015,142.04,142.03,6.28]
[1750962017796,6.80185015,142.05,142.03,6.28]
[1750962023309,6.80185015,142.05,142.03,35.18]
[1750962024115,6.80185015,142.06,142.03,35.18]
[1750962024298,6.80185015,142.05,142.03,35.18]
[1750962024691,6.80185015,142.04,142.03,6.28]
[1750962025000,6.80185015,142.04,142.03,0.02]
[1750962025728,13.84212049,142.04,142.03,0.02]
[1750962026026,6.80185015,142.04,142.03,0.02]
[1750962026192,13.84212049,142.04,142.03,0.02]
[1750962027832,24.63673703,142.07,142.03,0.02]
[1750962028032,6.80185015,142.04,142.03,0.02]
[1750962029653,6.80185015,142.07,142.03,0.02]
[1750962031537,6.80185015,142.04,142.03,0.02]
[1750962040153,13.84212049,142.04,142.03,0.02]
[1750962040349,6.80185015,142.04,142.03,0.02]
[1750962041653,7.03993903,142.05,142.03,0.02]
[1750962041864,6.80185015,142.04,142.03,0.02]
[1750962042031,13.84212049,142.04,142.03,0.02]
[1750962044256,13.84212049,142.04,142.02,0.02]
[1750962044552,6.80185015,142.03,142.02,0.02]
[1750962045248,13.84261618,142.03,142.02,0.02]
[1750962046761,6.85624983,142.05,142.02,0.02]
[1750962047058,6.80185015,142.03,142.02,0.02]
[1750962052669,6.80185015,142.04,142.02,0.02]
[1750962052846,6.80185015,142.05,142.02,0.02]
[1750962053444,6.80185015,142.04,142.02,0.02]
[1750962055862,6.80185015,142.05,142.02,0.02]
[1750962056071,5.23024983,142.06,142.02,0.02]
[1750962056374,12.03209998,142.07,142.02,6.82185015]
[1750962056565,6.80185015,142.07,142.02,6.82185015]
[1750962056960,6.80185015,142.07,142.02,0.02]
[1750962056961,6.80185015,142.06,142.02,0.02]
[1750962057164,6.80185015,142.04,142.02,0.02]
[1750962057978,6.80185015,142.05,142.02,0.02]
[1750962058981,6.80185015,142.04,142.02,0.02]
[1750962059954,6.80185015,142.03,142.02,0.02]
[1750962064479,13.84261618,142.03,142.02,0.02]
[1750962064680,6.80185015,142.03,142.02,0.02]
[1750962065266,12.03209998,142.03,142.02,0.02]
[1750962065679,12.17426155,142.03,142.02,0.02]
[1750962065857,5.23024983,142.03,142.02,0.02]
[1750962066060,12.03209998,142.03,142.02,0.02]
[1750962066461,19.07286601,142.03,142.02,0.02]
[1750962066673,6.80185015,142.03,142.02,0.02]
[1750962066876,12.03209998,142.03,142.02,0.02]
[1750962067187,19.07286601,142.03,142.02,0.02]
[1750962067486,13.84261618,142.03,142.02,0.02]
[1750962067982,19.07286601,142.03,142.02,0.02]
[1750962068283,13.84261618,142.03,142.02,0.02]
[1750962068660,19.07286601,142.03,142.02,0.02]
[1750962068863,13.84261618,142.03,142.02,0.02]
[1750962069063,19.07286601,142.03,142.02,0.02]
[1750962069284,13.84261618,142.03,142.02,0.02]
[1750962069580,19.07286601,142.03,142.02,0.02]
[1750962069755,13.84261618,142.03,142.02,0.02]
[1750962069955,19.07286601,142.03,142.02,0.02]
[1750962070172,13.84261618,142.03,142.02,0.02]
[1750962070458,19.07286601,142.03,142.02,0.02]
[1750962070657,13.98477775,142.03,142.02,0.02]
[1750962070966,19.21502758,142.03,142.02,0.02]
[1750962071763,19.07286601,142.03,142.02,0.02]
[1750962072679,13.84261618,142.03,142.02,0.02]
[1750962072866,19.07286601,142.03,142.02,0.02]
[1750962073064,13.84261618,142.03,142.02,0.02]
[1750962073276,19.07286601,142.03,142.02,0.02]
[1750962073481,13.84261618,142.03,142.02,0.02]
[1750962073665,19.07286601,142.03,142.02,0.02]
[1750962073867,13.84261618,142.03,142.02,0.02]
[1750962074071,5.23024983,142.03,142.02,0.02]
[1750962074380,6.80185015,142.03,142.02,0.02]
[1750962074979,13.84261618,142.03,142.02,0.02]
[1750962075486,19.07286601,142.03,142.02,0.02]
[1750962075683,6.80185015,142.03,142.02,0.02]
[1750962075985,5.23024983,142.04,142.02,0.02]
[1750962076162,6.80185015,142.04,142.02,0.02]
[1750962076982,6.80185015,142.05,142.02,0.02]
[1750962077566,6.80185015,142.03,142.02,0.02]
[1750962077981,6.80185015,142.04,142.02,0.02]
[1750962078378,6.80185015,142.05,142.02,0.02]
[1750962078693,6.80185015,142.04,142.02,0.02]
[1750962080892,6.80185015,142.05,142.02,0.02]
[1750962081677,6.80185015,142.05,142.02,6.1614]
[1750962081879,12.03209998,142.07,142.02,12.96325015]
[1750962082077,6.80185015,142.07,142.02,102.36325015]
[1750962083491,6.80185015,142.07,142.03,28.9]
[1750962084089,6.80185015,142.05,142.03,28.9]
[1750962084280,6.80185015,142.04,142.02,89.42]
[1750962084482,6.80185015,142.04,142.02,0.02]
[1750962084892,6.80185015,142.05,142.02,0.02]
[1750962085276,5.23024983,142.07,142.02,0.02]
[1750962085500,12.03209998,142.08,142.03,6.80185015]
[1750962085700,12.03209998,142.08,142.03,13.38595015]
[1750962086073,6.80185015,142.08,142.03,13.38595015]
[1750962087201,6.80185015,142.08,142.04,6.80185015]
[1750962087511,6.80185015,142.08,142.03,13.38595015]
[1750962087715,0.04,142.09,142.05,1.6085]
[1750962087871,0.04,142.09,142.08,12.94325015]
[1750962088075,0.04,142.09,142.08,150.05506058]
[1750962088317,0.04,142.09,142.08,150.33938372]
[1750962088794,0.04,142.09,142.08,157.14123387]
[1750962089086,0.04,142.09,142.08,158.74973387]
[1750962089500,0.04,142.14,142.09,19.07613357]
[1750962089699,0.04,142.14,142.13,25.59366058]
[1750962089873,0.04,142.14,142.13,144.49508023]
[1750962090072,0.04,142.14,142.13,136.98964886]
[1750962090276,0.04,142.14,142.13,143.79149901]
[1750962090489,0.04,142.14,142.13,159.162196]
[1750962091785,0.04,142.15,142.14,39.71515116]
[1750962091991,0.04,142.16,142.14,66.41868288]
[1750962092296,0.04,142.16,142.15,32.67983387]
[1750962093210,0.04,142.2,142.19,25.45149901]
[1750962093381,0.04,142.2,142.19,54.45149901]
[1750962093703,0.04,142.2,142.19,47.64964886]
[1750962093900,0.04,142.2,142.19,54.45149901]
[1750962096415,0.04,142.2,142.19,152.54156805]
[1750962096716,0.04,142.2,142.19,158.87112709]
[1750962100317,0.04,142.22,142.2,19.07613357]
[1750962100516,0.04,142.22,142.2,33.6135674]
[1750962100827,0.04,142.24,142.22,35.00254886]
[1750962101041,0.04,142.26,142.25,35.14471043]
[1750962101216,0.04,142.26,142.25,72.11172126]
[1750962101533,0.04,142.34,142.25,72.11172126]
[1750962101534,0.04,142.34,142.3,0.14216157]
[1750962101843,0.04,142.34,142.31,35.28]
[1750962102144,0.04,142.34,142.33,6.80185015]
[1750962102349,0.04,142.34,142.33,57.97787891]
[1750962102645,0.04,142.38,142.37,10.16823005]
[1750962102810,0.04,142.38,142.37,36.22]
[1750962103016,0.04,142.38,142.35,0.42648471]
[1750962103210,0.04,142.38,142.37,0.14216157]
[1750962103410,0.04,142.38,142.32,8.2242]
[1750962103646,0.04,142.38,142.33,18.79181043]
[1750962103810,0.04,142.38,142.35,10.16823005]
[1750962104010,0.04,142.38,142.36,29.94]
[1750962104315,0.04,142.38,142.32,13.2646]
[1750962104518,10.20823005,142.38,142.33,28.96004048]
[1750962104839,0.04,142.38,142.33,18.64964886]
[1750962105030,0.04,142.38,142.32,36.74]
[1750962105031,10.20823005,142.38,142.32,36.74]
[1750962105225,17.23183185,142.38,142.27,8.5136]
[1750962105426,17.23183185,142.38,142.28,30.1]
[1750962105619,10.16823005,142.31,142.27,7.0]
[1750962105811,10.16823005,142.3,142.27,7.0]